[Event "African Games-chT 2019"]
[Site "Casablanca"]
[Date "2019.08.24"]
[Round "5.33"]
[White "Kourakoumba, Florent"]
[Black "Asante Debesai Zerabruk"]
[Result "1-0"]
[ECO "B12"]
[WhiteElo "1677"]
[BlackElo "1712"]
[Annotator "NA"]
[PlyCount "199"]
[EventDate "2019.08.24"]
[EventType "team-tourn"]
[EventCountry "MAR"]
[SourceTitle "playchess.com"]
[Source "ChessBase"]
[SourceQuality "1"]
[WhiteTeam "CAF"]
[BlackTeam "Eritrea"]
[BlackTeamCountry "ERI"]
[TimeControl "900+10"]

1. e4 {[%emt 0:00:00]} c6 {[%emt 0:00:00]} 2. d4 {[%emt 0:00:00]} d5 {[%emt 0:00:00]} 3. e5 {[%emt 0:00:02]} Bf5 {[%emt 0:00:00]} 4. Nf3 {[%emt 0:00:05]} e6 {[%emt 0:00:00]} 5. h3 {[%emt 0:00:08]} h6 {[%emt 0:00:16]} 6. Be2 {[%emt 0:00:13]} Nd7 {[%emt 0:00:01]} 7. O-O {[%emt 0:00:03]} a6 {[%emt 0:00:07]} 8. Bd3 {[%emt 0:00:08]} Bxd3 {[%emt 0:00:02]} 9. Qxd3 {[%emt 0:00:01]} c5 {[%emt 0:00:03]} 10. c3 {[%emt 0:00:02]} Ne7 {[%emt 0:00:12]} 11. Be3 {[%emt 0:00:18]} c4 {[%emt 0:00:08]} 12. Qe2 {[%emt 0:00:05]} Ng6 {[%emt 0:00:14]} 13. Nbd2 {[%emt 0:00:12]} Be7 {[%emt 0:00:17]} 14. Nh2 {[%emt 0:00:17]} Qc7 {[%emt 0:02:47]} 15. f4 {[%emt 0:00:07]} O-O-O {[%emt 0:02:08]} 16. b3 {[%emt 0:00:08]} Nb6 {[%emt 0:00:40]} 17. a4 {[%emt 0:00:11]} cxb3 {[%emt 0:00:36]} 18. Nxb3 {[%emt 0:00:03]} Qc4 {[%emt 0:00:02]} 19. Qxc4+ {[%emt 0:00:42]} Nxc4 {[%emt 0:00:09]} 20. Bd2 {[%emt 0:00:16]} f5 {[%emt 0:00:23]} 21. Bc1 {[%emt 0:00:23]} Kb8 {[%emt 0:00:27]} 22. Rf3 {[%emt 0:00:06]} Nf8 {[%emt 0:00:39]} 23. Nd2 {[%emt 0:00:06]} Rc8 {[%emt 0:00:25]} 24. Nxc4 {[%emt 0:00:03]} Rxc4 {[%emt 0:00:02]} 25. Bd2 {[%emt 0:00:12]} g5 {[%emt 0:00:02]} 26. g3 {[%emt 0:00:09]} Ng6 {[%emt 0:00:09]} 27. Kh1 {[%emt 0:00:12]} Rhc8 {[%emt 0:00:19]} 28. a5 {[%emt 0:00:02]} Ka7 {[%emt 0:00:21]} 29. Rff1 {[%emt 0:00:06]} R8c6 {[%emt 0:00:53]} 30. Rfb1 {[%emt 0:00:04]} b6 {[%emt 0:00:17]} 31. axb6+ {[%emt 0:00:11]} Rxb6 {[%emt 0:00:01]} 32. Rxb6 {[%emt 0:00:04]} Kxb6 {[%emt 0:00:02]} 33. Nf1 {[%emt 0:00:09]} gxf4 {[%emt 0:00:29]} 34. gxf4 {[%emt 0:00:01]} Nh4 {[%emt 0:00:28]} 35. Ne3 {[%emt 0:00:08]} Rc8 {[%emt 0:00:13]} 36. Rb1+ {[%emt 0:00:05]} Ka7 {[%emt 0:00:07]} 37. Rf1 {[%emt 0:00:18]} Rb8 {[%emt 0:00:35]} 38. Ng2 {[%emt 0:00:02]} Nxg2 {[%emt 0:01:03]} 39. Kxg2 {[%emt 0:00:01]} Rb2 {[%emt 0:00:01]} 40. Rf2 {[%emt 0:00:05]} Bh4 41. Re2 {[%emt 0:00:12]} Be1 {[%emt 0:00:22]} 42. Rxe1 {[%emt 0:00:12]} Rxd2+ {[%emt 0:00:01]} 43. Kg3 {[%emt 0:00:02]} Rc2 {[%emt 0:00:02]} 44. Re3 {[%emt 0:00:04]} a5 {[%emt 0:00:00]} 45. Kh4 {[%emt 0:00:03]} a4 {[%emt 0:00:01]} 46. Kh5 {[%emt 0:00:01]} a3 {[%emt 0:00:52]} 47. Kxh6 {[%emt 0:00:06]} Rh2 {[%emt 0:00:06]} 48. Kg6 {[%emt 0:00:07]} a2 {[%emt 0:00:09]} 49. Re1 {[%emt 0:00:01]} Rxh3 {[%emt 0:00:02]} 50. Ra1 {[%emt 0:00:02]} Rh2 {[%emt 0:00:09]} 51. Kf6 {[%emt 0:00:01]} Rh6+ {[%emt 0:00:18]} 52. Ke7 {[%emt 0:00:05]} Kb6 {[%emt 0:03:19]} 53. Rxa2 {[%emt 0:00:04]} Kb7 {[%emt 0:00:26]} 54. Rb2+ {[%emt 0:00:03]} Kc7 {[%emt 0:00:07]} 55. Rb4 {[%emt 0:00:08]} Kc6 {[%emt 0:01:24]} 56. Ra4 {[%emt 0:00:10]} Kb7 {[%emt 0:00:07]} 57. Rb4+ {[%emt 0:00:03]} Kc6 {[%emt 0:00:06]} 58. Rb8 {[%emt 0:00:05]} Rg6 {[%emt 0:00:12]} 59. Rf8 {[%emt 0:00:05]} Rg4 {[%emt 0:00:23]} 60. Kxe6 {[%emt 0:00:13]} Rxf4 {[%emt 0:00:06]} 61. Rxf5 {[%emt 0:00:02]} Rh4 {[%emt 0:00:16]} 62. Rf6 {[%emt 0:00:02]} Rh3 {[%emt 0:00:08]} 63. Kf5+ {[%emt 0:00:06]} Kc7 {[%emt 0:00:20]} 64. Rd6 {[%emt 0:00:06]} Rf3+ {[%emt 0:00:22]} 65. Ke6 {[%emt 0:00:07]} Rxc3 {[%emt 0:00:10]} 66. Kxd5 {[%emt 0:00:04]} Ra3 {[%emt 0:00:08]} 67. Rh6 {[%emt 0:00:11]} Ra5+ {[%emt 0:00:04]} 68. Ke4 {[%emt 0:00:02]} Ra4 {[%emt 0:00:02]} 69. Rf6 {[%emt 0:00:15]} Kd7 {[%emt 0:00:07]} 70. Rd6+ {[%emt 0:00:03]} Ke7 {[%emt 0:00:02]} 71. Rb6 {[%emt 0:00:11]} Kd7 {[%emt 0:00:09]} 72. Rb7+ {[%emt 0:00:05]} Ke6 {[%emt 0:00:06]} 73. Rb6+ {[%emt 0:00:07]} Kd7 {[%emt 0:00:07]} 74. Rd6+ {[%emt 0:00:03]} Ke7 {[%emt 0:00:01]} 75. Kf5 {[%emt 0:00:03]} Ra1 {[%emt 0:00:06]} 76. Re6+ {[%emt 0:00:08]} Kf7 {[%emt 0:00:07]} 77. Rf6+ {[%emt 0:00:07]} Ke7 {[%emt 0:00:00]} 78. Rb6 {[%emt 0:00:09]} Rf1+ {[%emt 0:00:04]} 79. Ke4 {[%emt 0:00:01]} Re1+ {[%emt 0:00:01]} 80. Kd5 {[%emt 0:00:01]} Ra1 {[%emt 0:00:13]} 81. Rb7+ {[%emt 0:00:02]} Ke8 {[%emt 0:00:04]} 82. Ke6 {[%emt 0:00:04]} Ra6+ {[%emt 0:00:02]} 83. Kf5 {[%emt 0:00:06]} Rh6 {[%emt 0:00:08]} 84. d5 {[%emt 0:00:02]} Rh5+ {[%emt 0:00:02]} 85. Ke4 {[%emt 0:00:03]} Rh4+ {[%emt 0:00:01]} 86. Kd3 {[%emt 0:00:16]} Rh5 {[%emt 0:00:11]} 87. Kd4 {[%emt 0:00:02]} Rh4+ {[%emt 0:00:07]} 88. Kc5 {[%emt 0:00:02]} Rh1 {[%emt 0:00:01]} 89. Kd6 {[%emt 0:00:04]} Rh6+ {[%emt 0:00:02]} 90. e6 {[%emt 0:00:01]} Kf8 {[%emt 0:00:40]} 91. Rb8+ {[%emt 0:00:21]} Kg7 {[%emt 0:00:01]} 92. Rb7+ {[%emt 0:00:01]} Kf8 {[%emt 0:00:02]} 93. Rb8+ {[%emt 0:00:09]} Kg7 {[%emt 0:00:01]} 94. Kd7 {[%emt 0:00:05]} Rh7 {[%emt 0:00:36]} 95. e7 {[%emt 0:00:03]} Kf6 {[%emt 0:00:03]} 96. d6 {[%emt 0:00:01]} Ke5 {[%emt 0:00:58]} 97. Rb6 {[%emt 0:00:09]} Kf6 {[%emt 0:00:09]} 98. Kd8 {[%emt 0:00:03]} Rxe7 {[%emt 0:00:48]} 99. dxe7+ {[%emt 0:00:03]} Kg7 {[%emt 0:00:01]} 100. Rb7 {[%emt 0:00:05]} 1-0

[Event "African Games-chT 2019"]
[Site "Casablanca"]
[Date "2019.08.25"]
[Round "6.2"]
[White "Amin, Bassem"]
[Black "Mushore, Emarald Takudzwa"]
[Result "0-1"]
[ECO "A05"]
[WhiteElo "2692"]
[BlackElo "2198"]
[Annotator "RC"]
[PlyCount "84"]
[EventDate "2019.08.24"]
[EventType "team-tourn"]
[EventCountry "MAR"]
[SourceTitle "playchess.com"]
[Source "ChessBase"]
[SourceQuality "1"]
[WhiteTeam "Egypt"]
[BlackTeam "Zimbabwe"]
[WhiteTeamCountry "EGY"]
[BlackTeamCountry "ZIM"]
[TimeControl "900+10"]

1. Nf3 {[%emt 0:00:04]} Nf6 {[%emt 0:00:00]} 2. g3 {[%emt 0:00:01]} e6 {[%emt 0:00:00]} 3. Bg2 {[%emt 0:00:02]} d5 {[%emt 0:00:04]} 4. O-O {[%emt 0:00:03]} b5 {[%emt 0:00:08]} 5. d3 {[%emt 0:00:04]} Bb7 {[%emt 0:00:05]} 6. Nbd2 {[%emt 0:00:06]} Be7 {[%emt 0:00:07]} 7. e4 {[%emt 0:00:04]} O-O {[%emt 0:00:48]} 8. e5 {[%emt 0:00:03]} Nfd7 {[%emt 0:00:02]} 9. Re1 {[%emt 0:00:01]} c5 {[%emt 0:00:07]} 10. Nf1 {[%emt 0:00:02]} Nc6 {[%emt 0:00:08]} 11. h4 {[%emt 0:00:06]} Qc7 {[%emt 0:00:38]} 12. Bf4 {[%emt 0:00:01]} Rfe8 {[%emt 0:00:12]} 13. N1h2 {[%emt 0:01:28]} Nb6 {[%emt 0:00:23]} 14. c3 {[%emt 0:00:24]} d4 {[%emt 0:01:02]} 15. Ng5 {[%emt 0:00:06]} Bxg5 {[%emt 0:02:25]} 16. hxg5 {[%emt 0:00:02]} Ne7 {[%emt 0:00:14]} 17. Qh5 {[%emt 0:00:17]} Ng6 {[%emt 0:00:52]} 18. cxd4 {[%emt 0:00:12]} cxd4 {[%emt 0:00:13]} 19. Ng4 {[%emt 0:00:10]} Bxg2 {[%emt 0:02:11]} 20. Kxg2 {[%emt 0:00:02]} Nd5 {[%emt 0:00:03]} 21. Re4 {[%emt 0:03:33]} Qc2 {[%emt 0:01:21]} 22. Rh1 {[%emt 0:02:18]} Qxd3 {[%emt 0:00:18]} 23. f3 {[%emt 0:02:05]} Ngxf4+ {[%emt 0:01:33]} 24. Rxf4 {[%emt 0:00:11]} Nxf4+ {[%emt 0:00:21]} 25. gxf4 {[%emt 0:00:01]} Rac8 {[%emt 0:00:20]} 26. Nf2 {[%emt 0:00:18]} Rc2 {[%emt 0:00:16]} 27. Kg3 {[%emt 0:00:02]} Qg6 {[%emt 0:00:25]} 28. Qg4 {[%emt 0:01:13]} Rd8 {[%emt 0:00:31]} 29. Ne4 {[%emt 0:00:08]} d3 {[%emt 0:00:21]} 30. Nd6 {[%emt 0:00:01]} d2 {[%emt 0:00:25]} 31. Rd1 {[%emt 0:00:06]} Rc1 {[%emt 0:00:04]} 32. Rxd2 {[%emt 0:00:28]} Rg1+ {[%emt 0:00:06]} 33. Rg2 {[%emt 0:00:01]} Rxg2+ {[%emt 0:00:01]} 34. Kxg2 {[%emt 0:00:00]} Qc2+ {[%emt 0:01:00]} 35. Kg3 {[%emt 0:00:11]} Qxb2 {[%emt 0:00:20]} 36. Qh5 {[%emt 0:00:08]} Rd7 {[%emt 0:00:29]} 37. Qh1 {[%emt 0:00:02]} Rc7 {[%emt 0:00:29]} 38. Ne4 {[%emt 0:00:24]} Rc1 {[%emt 0:00:05]} 39. Qh3 {[%emt 0:00:21]} Rg1+ {[%emt 0:00:06]} 40. Kh4 {[%emt 0:00:01]} Qg2 {[%emt 0:00:06]} 41. Qxg2 {[%emt 0:02:28]} Rxg2 {[%emt 0:00:02]} 42. a3 {[%emt 0:00:12]} a5 {[%emt 0:00:04]} 0-1

[Event "African Games-chT 2019"]
[Site "Casablanca"]
[Date "2019.08.25"]
[Round "6.3"]
[White "Shaba, Linda"]
[Black "Wafa, Shrook"]
[Result "0-1"]
[ECO "E16"]
[WhiteElo "1615"]
[BlackElo "2183"]
[Annotator "NA"]
[PlyCount "100"]
[EventDate "2019.08.24"]
[EventType "team-tourn"]
[EventCountry "MAR"]
[SourceTitle "playchess.com"]
[Source "ChessBase"]
[SourceQuality "1"]
[WhiteTeam "Zimbabwe"]
[BlackTeam "Egypt"]
[WhiteTeamCountry "ZIM"]
[BlackTeamCountry "EGY"]
[TimeControl "900+10"]

1. d4 {[%emt 0:00:00]} Nf6 {[%emt 0:00:00]} 2. c4 {[%emt 0:00:00]} e6 {[%emt 0:00:00]} 3. Nf3 {[%emt 0:00:00]} Bb4+ {[%emt 0:00:03]} 4. Bd2 {[%emt 0:00:03]} Qe7 {[%emt 0:00:04]} 5. Nc3 {[%emt 0:00:11]} O-O {[%emt 0:00:06]} 6. g3 {[%emt 0:00:03]} d6 {[%emt 0:00:36]} 7. Bg2 {[%emt 0:00:04]} e5 {[%emt 0:00:13]} 8. dxe5 {[%emt 0:00:19]} dxe5 {[%emt 0:00:07]} 9. O-O {[%emt 0:01:12]} a5 {[%emt 0:00:35]} 10. Qc2 {[%emt 0:01:14]} Nc6 {[%emt 0:02:55]} 11. a3 {[%emt 0:06:14]} Bc5 {[%emt 0:01:58]} 12. Nd5 {[%emt 0:02:04]} Nxd5 {[%emt 0:02:21]} 13. cxd5 {[%emt 0:00:02]} Nd4 {[%emt 0:00:12]} 14. Nxd4 {[%emt 0:00:22]} exd4 {[%emt 0:00:20]} 15. Rfe1 {[%emt 0:00:27]} Bb6 {[%emt 0:01:09]} 16. e3 {[%emt 0:01:51]} Qf6 {[%emt 0:00:09]} 17. Bc1 {[%emt 0:01:52]} Bg4 {[%emt 0:01:48]} 18. e4 {[%emt 0:00:34]} d3 {[%emt 0:00:33]} 19. Qd2 {[%emt 0:00:11]} Be2 {[%emt 0:00:47]} 20. Rxe2 {[%emt 0:00:03]} dxe2 {[%emt 0:00:07]} 21. Qxe2 {[%emt 0:00:01]} Bd4 {[%emt 0:00:44]} 22. Rb1 {[%emt 0:00:09]} c6 {[%emt 0:00:46]} 23. dxc6 {[%emt 0:00:10]} bxc6 {[%emt 0:00:34]} 24. Be3 {[%emt 0:00:16]} Rab8 {[%emt 0:00:24]} 25. Bxd4 {[%emt 0:00:31]} Qxd4 {[%emt 0:00:03]} 26. Qc2 {[%emt 0:00:42]} c5 {[%emt 0:00:30]} 27. b3 {[%emt 0:00:16]} Rfd8 {[%emt 0:00:21]} 28. Bf1 {[%emt 0:00:15]} a4 {[%emt 0:00:08]} 29. Bc4 {[%emt 0:00:08]} Qd2 {[%emt 0:00:22]} 30. Qxd2 {[%emt 0:00:26]} Rxd2 {[%emt 0:00:03]} 31. Bd5 {[%emt 0:00:08]} axb3 {[%emt 0:00:22]} 32. Rxb3 {[%emt 0:00:10]} Rxb3 {[%emt 0:00:02]} 33. Bxb3 {[%emt 0:00:01]} Rd3 {[%emt 0:00:02]} 34. Bd5 {[%emt 0:00:06]} Rxa3 {[%emt 0:00:02]} 35. Kf1 {[%emt 0:00:03]} Kf8 {[%emt 0:00:14]} 36. Ke2 {[%emt 0:00:02]} Ke7 {[%emt 0:00:02]} 37. f4 {[%emt 0:00:25]} f6 {[%emt 0:00:06]} 38. Kf2 {[%emt 0:00:25]} Rd3 {[%emt 0:00:11]} 39. Ke2 {[%emt 0:00:04]} Rxd5 {[%emt 0:00:10]} 40. exd5 {[%emt 0:00:02]} Kd6 {[%emt 0:00:01]} 41. g4 {[%emt 0:00:30]} Kxd5 {[%emt 0:00:04]} 42. Ke3 {[%emt 0:00:05]} Kc4 {[%emt 0:00:38]} 43. Ke4 {[%emt 0:00:12]} Kb3 {[%emt 0:00:03]} 44. Kf5 {[%emt 0:00:03]} c4 {[%emt 0:00:02]} 45. Ke6 {[%emt 0:00:01]} c3 {[%emt 0:00:03]} 46. Kf7 {[%emt 0:00:01]} c2 {[%emt 0:00:02]} 47. Kxg7 {[%emt 0:00:02]} c1=Q {[%emt 0:00:04]} 48. g5 {[%emt 0:00:39]} fxg5 {[%emt 0:00:11]} 49. f5 {[%emt 0:00:02]} Qc7+ {[%emt 0:00:12]} 50. Kh6 {[%emt 0:00:03]} Qf7 {[%emt 0:00:20]} 0-1

[Event "African Games-chT 2019"]
[Site "Casablanca"]
[Date "2019.08.25"]
[Round "6.4"]
[White "Wafa, Shahenda"]
[Black "Wakuruwarewa, Colletta"]
[Result "1-0"]
[ECO "C11"]
[WhiteElo "2139"]
[BlackElo "1587"]
[Annotator "NA"]
[PlyCount "79"]
[EventDate "2019.08.24"]
[EventType "team-tourn"]
[EventCountry "MAR"]
[SourceTitle "playchess.com"]
[Source "ChessBase"]
[SourceQuality "1"]
[WhiteTeam "Egypt"]
[BlackTeam "Zimbabwe"]
[WhiteTeamCountry "EGY"]
[BlackTeamCountry "ZIM"]
[TimeControl "900+10"]

1. e4 {[%emt 0:00:00]} e6 {[%emt 0:00:00]} 2. d4 {[%emt 0:00:00]} d5 {[%emt 0:00:00]} 3. Nc3 {[%emt 0:00:00]} Nf6 {[%emt 0:00:00]} 4. e5 {[%emt 0:00:02]} Nfd7 {[%emt 0:00:00]} 5. f4 {[%emt 0:00:02]} c5 {[%emt 0:00:02]} 6. Nf3 {[%emt 0:00:03]} Nc6 {[%emt 0:00:02]} 7. Be3 {[%emt 0:00:02]} Be7 {[%emt 0:00:08]} 8. Qd2 {[%emt 0:00:04]} a6 {[%emt 0:00:26]} 9. dxc5 {[%emt 0:01:23]} Nxc5 {[%emt 0:00:22]} 10. O-O-O {[%emt 0:00:14]} b5 {[%emt 0:00:43]} 11. Qf2 {[%emt 0:01:10]} b4 {[%emt 0:00:54]} 12. Nxd5 {[%emt 0:01:47]} Nb3+ {[%emt 0:01:25]} 13. axb3 {[%emt 0:02:58]} exd5 {[%emt 0:00:02]} 14. Bb6 {[%emt 0:00:13]} Qd7 {[%emt 0:00:24]} 15. Bc4 {[%emt 0:00:29]} Qf5 {[%emt 0:00:31]} 16. Bxd5 {[%emt 0:01:12]} Bd7 {[%emt 0:00:19]} 17. Nd4 {[%emt 0:01:40]} Nxd4 {[%emt 0:03:19]} 18. Qxd4 {[%emt 0:00:43]} Rc8 {[%emt 0:01:26]} 19. Bc4 {[%emt 0:00:15]} Be6 {[%emt 0:00:34]} 20. Bd3 {[%emt 0:00:18]} Qg4 {[%emt 0:00:31]} 21. Rhg1 {[%emt 0:02:22]} O-O {[%emt 0:00:52]} 22. Kb1 {[%emt 0:00:49]} Rc6 {[%emt 0:01:10]} 23. h3 {[%emt 0:00:17]} Qg3 {[%emt 0:00:51]} 24. Qe4 {[%emt 0:00:10]} g6 {[%emt 0:01:20]} 25. Qxc6 {[%emt 0:00:06]} Qxf4 {[%emt 0:00:26]} 26. Qe4 {[%emt 0:00:12]} Qg3 {[%emt 0:00:16]} 27. Qe3 {[%emt 0:00:08]} Qg5 {[%emt 0:00:45]} 28. Qxg5 {[%emt 0:00:03]} Bxg5 {[%emt 0:00:01]} 29. Bxa6 {[%emt 0:00:08]} Rb8 {[%emt 0:00:46]} 30. Bc5 {[%emt 0:00:07]} Bf5 {[%emt 0:00:29]} 31. Bd3 {[%emt 0:00:11]} Be6 {[%emt 0:00:05]} 32. Bc4 {[%emt 0:00:02]} Bxc4 {[%emt 0:00:24]} 33. bxc4 {[%emt 0:00:01]} b3 {[%emt 0:00:20]} 34. cxb3 {[%emt 0:00:03]} Rxb3 {[%emt 0:00:05]} 35. Bd6 {[%emt 0:00:16]} Be3 {[%emt 0:00:51]} 36. Rge1 {[%emt 0:00:04]} Bf2 {[%emt 0:00:31]} 37. Re2 {[%emt 0:00:03]} Bh4 {[%emt 0:00:12]} 38. c5 {[%emt 0:00:07]} f6 {[%emt 0:00:24]} 39. c6 {[%emt 0:00:07]} fxe5 {[%emt 0:00:21]} 40. c7 {[%emt 0:00:02]} 1-0

[Event "African Games-chT 2019"]
[Site "Casablanca"]
[Date "2019.08.25"]
[Round "6.5"]
[White "Bellahcene, Bilel"]
[Black "Aderito, Pedro"]
[Result "1-0"]
[ECO "B12"]
[WhiteElo "2550"]
[BlackElo "2301"]
[Annotator "ChessBase"]
[PlyCount "41"]
[EventDate "2019.08.24"]
[EventType "team-tourn"]
[EventCountry "MAR"]
[SourceTitle "playchess.com"]
[Source "ChessBase"]
[SourceQuality "1"]
[WhiteTeam "Algeria"]
[BlackTeam "Angola"]
[WhiteTeamCountry "ALG"]
[BlackTeamCountry "ANG"]
[TimeControl "900+10"]

1. e4 {[%emt 0:00:00]} c6 {[%emt 0:00:00]} 2. d4 {[%emt 0:00:00]} d5 {[%emt 0:00:00]} 3. e5 {[%emt 0:00:01]} Bf5 {[%emt 0:00:01]} 4. h4 {[%emt 0:00:02]} h5 {[%emt 0:00:03]} 5. Bd3 {[%emt 0:00:01]} Bxd3 {[%emt 0:00:03]} 6. Qxd3 {[%emt 0:00:00]} e6 {[%emt 0:00:04]} 7. Bg5 {[%emt 0:00:03]} Qb6 {[%emt 0:00:02]} 8. Nd2 {[%emt 0:00:10]} Ne7 {[%emt 0:00:38]} 9. Ne2 {[%emt 0:00:09]} Nf5 {[%emt 0:00:05]} 10. O-O {[%emt 0:00:05]} Qa6 {[%emt 0:00:41]} 11. c4 {[%emt 0:00:01]} Nd7 {[%emt 0:00:04]} 12. b3 {[%emt 0:00:07]} Rc8 {[%emt 0:00:07]} 13. Ng3 {[%emt 0:00:07]} g6 {[%emt 0:00:39]} 14. Nxf5 {[%emt 0:00:10]} gxf5 {[%emt 0:00:02]} 15. a4 {[%emt 0:00:37]} c5 {[%emt 0:00:29]} 16. Rac1 {[%emt 0:00:01]} Rc6 {[%emt 0:01:29]} 17. Rfd1 {[%emt 0:00:07]} cxd4 {[%emt 0:00:11]} 18. Qxd4 {[%emt 0:00:04]} Bc5 {[%emt 0:00:05]} 19. Qf4 {[%emt 0:00:02]} Nb6 {[%emt 0:00:25]} 20. Nf3 {[%emt 0:00:21]} dxc4 {[%emt 0:00:18]} 21. Rd8# {[%emt 0:00:07]} 1-0

[Event "African Games-chT 2019"]
[Site "Casablanca"]
[Date "2019.08.25"]
[Round "6.6"]
[White "Silva, David"]
[Black "Arab, Adlane"]
[Result "1/2-1/2"]
[ECO "B61"]
[WhiteElo "2239"]
[BlackElo "2485"]
[Annotator "ChessBase"]
[PlyCount "113"]
[EventDate "2019.08.24"]
[EventType "team-tourn"]
[EventCountry "MAR"]
[SourceTitle "playchess.com"]
[Source "ChessBase"]
[SourceQuality "1"]
[WhiteTeam "Angola"]
[BlackTeam "Algeria"]
[WhiteTeamCountry "ANG"]
[BlackTeamCountry "ALG"]
[TimeControl "900+10"]

1. e4 {[%emt 0:00:00]} c5 {[%emt 0:00:00]} 2. Nf3 {[%emt 0:01:04]} d6 {[%emt 0:00:00]} 3. d4 {[%emt 0:00:08]} cxd4 {[%emt 0:00:00]} 4. Nxd4 {[%emt 0:00:02]} Nf6 {[%emt 0:00:00]} 5. Nc3 {[%emt 0:00:02]} Nc6 {[%emt 0:00:02]} 6. Bg5 {[%emt 0:00:02]} Bd7 {[%emt 0:00:13]} 7. Qd2 {[%emt 0:00:03]} Rc8 {[%emt 0:00:03]} 8. O-O-O {[%emt 0:00:03]} Nxd4 {[%emt 0:00:04]} 9. Qxd4 {[%emt 0:00:06]} Qa5 {[%emt 0:00:02]} 10. Bd2 {[%emt 0:04:28]} e6 {[%emt 0:01:22]} 11. Kb1 {[%emt 0:00:19]} Qc5 {[%emt 0:00:58]} 12. Qxc5 {[%emt 0:00:09]} dxc5 {[%emt 0:00:04]} 13. f3 {[%emt 0:00:04]} a6 {[%emt 0:00:10]} 14. g4 {[%emt 0:00:10]} Bc6 {[%emt 0:00:05]} 15. Bf4 {[%emt 0:00:04]} Be7 {[%emt 0:00:08]} 16. h4 {[%emt 0:00:02]} O-O {[%emt 0:00:30]} 17. Be2 {[%emt 0:00:08]} Rfd8 {[%emt 0:00:05]} 18. Rxd8+ {[%emt 0:00:37]} Rxd8 {[%emt 0:00:01]} 19. Rd1 {[%emt 0:00:04]} Rxd1+ {[%emt 0:00:02]} 20. Nxd1 {[%emt 0:00:01]} Nd7 {[%emt 0:00:20]} 21. Bg3 {[%emt 0:00:07]} Kf8 {[%emt 0:00:18]} 22. Ne3 {[%emt 0:00:14]} b5 {[%emt 0:00:12]} 23. c4 {[%emt 0:00:16]} b4 {[%emt 0:00:22]} 24. h5 {[%emt 0:00:46]} h6 {[%emt 0:00:05]} 25. Bc7 {[%emt 0:00:17]} Ke8 {[%emt 0:00:05]} 26. Kc2 {[%emt 0:00:43]} Bd8 {[%emt 0:00:05]} 27. Bd6 {[%emt 0:00:11]} Be7 {[%emt 0:00:20]} 28. Bg3 {[%emt 0:01:08]} Kd8 {[%emt 0:00:09]} 29. Ng2 {[%emt 0:00:11]} Bf6 {[%emt 0:00:31]} 30. Ne1 {[%emt 0:00:02]} Bd4 {[%emt 0:00:04]} 31. Nd3 {[%emt 0:00:05]} e5 {[%emt 0:00:27]} 32. Bf1 {[%emt 0:00:20]} a5 {[%emt 0:00:07]} 33. Bh3 {[%emt 0:00:10]} f6 {[%emt 0:00:04]} 34. Bf1 {[%emt 0:00:25]} Nf8 {[%emt 0:00:03]} 35. Nc1 {[%emt 0:00:27]} Ne6 {[%emt 0:00:07]} 36. Ne2 {[%emt 0:00:04]} Ba4+ {[%emt 0:00:46]} 37. b3 {[%emt 0:00:11]} Be8 {[%emt 0:00:02]} 38. Bg2 {[%emt 0:00:12]} Ke7 {[%emt 0:00:13]} 39. Kd3 {[%emt 0:02:03]} a4 {[%emt 0:00:11]} 40. f4 {[%emt 0:00:51]} axb3 {[%emt 0:00:08]} 41. axb3 {[%emt 0:00:02]} exf4 {[%emt 0:00:18]} 42. Nxf4 {[%emt 0:00:03]} Nxf4+ {[%emt 0:00:02]} 43. Bxf4 {[%emt 0:00:02]} Bd7 {[%emt 0:00:53]} 44. Bf3 {[%emt 0:00:06]} Ke6 {[%emt 0:00:06]} 45. Bc7 {[%emt 0:00:18]} Be5 {[%emt 0:00:15]} 46. Bd8 {[%emt 0:00:43]} Bd6 {[%emt 0:00:07]} 47. g5 {[%emt 0:00:02]} f5 {[%emt 0:00:50]} 48. Ke3 {[%emt 0:02:25]} hxg5 {[%emt 0:03:05]} 49. Bxg5 {[%emt 0:00:07]} Be5 {[%emt 0:00:06]} 50. h6 {[%emt 0:02:30]} gxh6 {[%emt 0:00:02]} 51. Bxh6 {[%emt 0:00:02]} Bd4+ {[%emt 0:00:30]} 52. Kd3 {[%emt 0:00:03]} Be8 {[%emt 0:00:29]} 53. Bd2 {[%emt 0:00:18]} Be5 {[%emt 0:00:32]} 54. Bg2 {[%emt 0:00:04]} Bh5 {[%emt 0:00:07]} 55. exf5+ {[%emt 0:00:03]} Kxf5 {[%emt 0:00:03]} 56. Be4+ {[%emt 0:00:02]} Ke6 {[%emt 0:00:14]} 57. Kc2 {[%emt 0:00:01]} 1/2-1/2